bitfinex/quotes_SOLUSD_20220114
["timestamp","ask_amount","ask_price","bid_price","bid_amount"]
[1642145043945,25.0348,149.23,149.13,9.57]
[1642145044346,25.0348,149.23,149.13,9.83]
[1642145044544,25.0348,149.23,149.13,76.55]
[1642145044746,0.25,149.23,149.13,76.55]
[1642145045047,3.57869816,149.25,149.13,76.55]
[1642145045449,3.57869816,149.25,149.13,82.55]
[1642145045851,3.57869816,149.25,149.16,25.51614667]
[1642145046049,0.25,149.25,149.16,35.34614667]
[1642145046251,0.25,149.25,149.17,66.72]
[1642145046450,3.32869816,149.26,149.17,66.98]
[1642145046649,3.32869816,149.26,149.17,0.26]
[1642145046851,3.32869816,149.26,149.17,66.98]
[1642145047050,24.8085,149.27,149.17,66.98]
[1642145047251,27.4885,149.27,149.17,66.98]
[1642145047852,27.7385,149.27,149.18,10.0503]
[1642145048054,27.7385,149.27,149.18,10.3103]
[1642145048455,2.68,149.27,149.19,9.57]
[1642145048655,3.32869816,149.28,149.2,66.72]
[1642145048854,3.32869816,149.28,149.22,35.85416377]
[1642145049055,3.32869816,149.28,149.22,102.83416377]
[1642145049455,3.32869816,149.28,149.23,9.57]
[1642145049856,7.16902145,149.31,149.23,9.83]
[1642145050356,7.41902145,149.31,149.23,9.83]
[1642145050961,0.25,149.31,149.23,9.83]
[1642145051160,0.25,149.31,149.24,10.0464]
[1642145051360,2.678,149.31,149.24,10.0464]
[1642145051558,2.678,149.31,149.24,10.3064]
[1642145052860,2.928,149.31,149.24,10.3064]
[1642145054061,2.928,149.31,149.24,0.26]
[1642145054287,2.928,149.31,149.23,9.83]
[1642145055186,2.928,149.31,149.23,19.8775]
[1642145055587,0.25,149.31,149.23,19.8775]
[1642145055989,24.8271,149.32,149.23,19.6175]
[1642145057388,28.15579816,149.32,149.23,19.8775]
[1642145059489,28.15579816,149.32,149.23,86.5975]
[1642145059889,28.15579816,149.32,149.23,19.8775]
[1642145060491,24.8271,149.32,149.23,19.8775]
[1642145063400,24.8271,149.32,149.23,10.0475]
[1642145063600,91.5471,149.32,149.18,9.57]
[1642145063802,2.68,149.31,149.18,9.57]
[1642145063999,2.93,149.31,149.18,9.57]
[1642145064403,24.9647,149.3,149.18,9.57]
[1642145064603,12.7307,149.29,149.19,41.93308655]
[1642145064803,2.68,149.29,149.19,41.93308655]
[1642145065003,2.93,149.29,149.19,42.19308655]
[1642145066204,2.93,149.29,149.19,41.93308655]
[1642145067608,12.9803,149.29,149.19,41.93308655]
[1642145069011,1.92022457,149.27,149.19,41.93308655]
[1642145069407,2.17022457,149.27,149.19,41.93308655]
[1642145070615,1.92022457,149.26,149.19,41.93308655]
[1642145071012,2.17022457,149.26,149.19,41.93308655]
[1642145074145,1.92022457,149.26,149.19,41.93308655]
[1642145074343,1.92022457,149.26,149.19,51.76308655]
[1642145074543,1.92022457,149.26,149.19,63.69872557]
[1642145075146,1.92022457,149.26,149.19,130.41872557]
[1642145075744,2.17022457,149.26,149.19,130.41872557]
[1642145075943,0.25,149.26,149.19,132.19148903]
[1642145076344,27.13492457,149.3,149.19,132.19148903]
[1642145076544,27.13492457,149.3,149.19,120.25585001]
[1642145076747,27.13492457,149.3,149.19,0.00256346]
[1642145076748,2.17022457,149.3,149.19,0.00256346]
[1642145076953,119.68,149.28,149.16,3.84362612]
[1642145077146,66.72,149.26,149.16,3.84362612]
[1642145077344,12.25,149.25,149.16,3.84362612]
[1642145077546,28.98975199,149.25,149.16,3.84362612]
[1642145077946,16.48975199,149.24,149.11,27.42213787]
[1642145078145,22.3054,149.23,149.11,27.42213787]
[1642145078648,22.5554,149.23,149.11,27.42213787]
[1642145078948,1.67685959,149.22,149.11,27.42213787]
[1642145079145,12.7369,149.21,149.11,27.42213787]
[1642145079645,12.9869,149.21,149.11,27.42213787]
[1642145080445,12.9869,149.21,149.11,27.68213787]
[1642145081046,12.9869,149.21,149.11,27.42213787]
[1642145085050,66.72,149.2,149.07,28.73282612]
[1642145085250,10.0583,149.18,149.07,28.73282612]
[1642145085450,2.682,149.17,149.07,3.84362612]
[1642145085850,2.932,149.17,149.07,3.84362612]
[1642145086049,2.932,149.17,149.07,35.66617571]
[1642145086651,2.932,149.17,149.07,31.82254959]
[1642145086851,0.25,149.17,149.07,31.82254959]
[1642145087052,2.932,149.19,149.07,31.82254959]
[1642145087254,10.0592,149.16,149.07,31.82254959]
[1642145087550,10.0592,149.16,149.05,3.84362612]
[1642145087551,10.3092,149.16,149.05,3.84362612]
[1642145087753,2.682,149.15,149.05,3.84362612]
[1642145087957,12.502,149.15,149.05,3.84362612]
[1642145088359,12.502,149.15,149.05,28.75968444]
[1642145088559,10.0617,149.12,149.05,28.75968444]
[1642145088959,10.3117,149.12,149.05,28.75968444]
[1642145089659,0.25,149.12,149.05,28.75968444]
[1642145089863,0.25,149.12,149.05,29.01968444]
[1642145090061,33.7194,149.14,149.05,29.01968444]
[1642145091165,2.682,149.13,149.05,28.75968444]
[1642145091566,12.9932,149.13,149.05,28.75968444]
[1642145092664,2.932,149.13,149.05,28.75968444]
[1642145092865,2.932,149.13,149.05,29.01968444]
[1642145093565,0.25,149.13,149.05,29.01968444]
[1642145093764,0.25,149.13,149.05,28.75968444]
[1642145093965,23.6587,149.14,149.05,28.75968444]
[1642145094765,33.7192,149.14,149.05,28.75968444]
[1642145096567,23.6587,149.14,149.05,29.01968444]
[1642145096770,23.4087,149.14,149.05,29.01968444]
[1642145097571,9.57,149.17,149.05,39.07848444]
[1642145097769,34.214,149.17,149.05,39.07848444]
[1642145097971,34.464,149.17,149.05,39.07848444]
[1642145098569,34.464,149.17,149.06,3.84306002]
[1642145098973,34.464,149.17,149.06,4.10306002]
[1642145099206,44.5225,149.17,149.06,3.84306002]
[1642145099607,46.19935959,149.17,149.06,3.84306002]
[1642145100008,2.682,149.16,149.06,3.84306002]
[1642145100214,2.682,149.16,149.05,28.75968444]
[1642145100408,2.932,149.16,149.05,28.75968444]
[1642145100608,10.061,149.13,149.05,28.75968444]
[1642145100810,2.932,149.16,149.05,28.75968444]
[1642145100811,2.932,149.16,149.05,29.01968444]
[1642145101610,2.932,149.16,149.05,38.58968444]
[1642145101809,10.0601,149.15,149.05,38.58968444]
[1642145102011,10.3101,149.15,149.05,38.58968444]
[1642145102213,0.25,149.15,149.05,38.58968444]
[1642145103212,34.9527,149.17,149.05,48.64838444]
[1642145103414,2.682,149.16,149.05,48.64838444]
[1642145103813,2.932,149.16,149.05,48.64838444]
[1642145105915,0.25,149.16,149.05,115.36838444]
[1642145106316,34.9527,149.17,149.05,48.64838444]
[1642145106517,2.682,149.16,149.05,48.64838444]
[1642145106918,2.932,149.16,149.05,48.64838444]
[1642145107216,2.932,149.16,149.06,3.84299561]
[1642145107419,2.932,149.16,149.06,13.90079561]
[1642145107617,2.682,149.16,149.06,14.16079561]
[1642145108718,34.7024,149.17,149.06,3.84299561]
[1642145108917,2.932,149.16,149.05,32.60331056]
[1642145109119,2.682,149.16,149.05,32.60331056]
[1642145109321,2.932,149.16,149.05,32.60331056]
[1642145109921,2.932,149.16,149.05,32.86331056]
[1642145110121,10.06,149.15,149.05,29.01968444]
[1642145110324,10.06,149.15,149.05,28.75968444]
[1642145110522,10.31,149.15,149.05,28.75968444]
[1642145111821,10.31,149.15,149.05,29.01968444]
[1642145112021,10.31,149.15,149.05,28.75968444]
[1642145112521,2.682,149.14,149.05,28.75968444]
[1642145112722,10.0612,149.13,149.05,28.75968444]
[1642145113025,10.3112,149.13,149.05,28.75968444]
[1642145113723,0.25,149.13,149.05,28.75968444]
[1642145114022,0.25,149.13,149.05,29.01968444]
[1642145114222,2.932,149.16,149.05,29.01968444]
[1642145114422,2.932,149.16,149.05,36.52968444]
[1642145114624,2.682,149.16,149.05,36.52968444]
[1642145114822,2.682,149.16,149.05,56.15848444]
[1642145115023,2.682,149.16,149.06,66.72]
[1642145115222,2.682,149.19,149.06,66.72]
[1642145115427,2.682,149.19,149.07,23.3149]
[1642145115825,2.682,149.19,149.08,9.57]
[1642145116224,12.7391,149.19,149.08,9.57]
[1642145117024,12.9891,149.19,149.08,9.57]
[1642145117828,24.23595959,149.19,149.07,23.3149]
[1642145118428,24.0296,149.18,149.07,23.3149]
[1642145118728,12.7403,149.17,149.07,23.3149]
[1642145118927,12.9903,149.17,149.07,23.3149]
[1642145119328,12.9903,149.17,149.06,10.3181]
[1642145119729,12.9903,149.17,149.06,0.26]
[1642145119939,12.9903,149.17,149.05,38.58968444]
[1642145120334,12.9903,149.17,149.05,38.32968444]
[1642145120536,81.38715959,149.17,149.05,38.32968444]
[1642145121136,81.38715959,149.17,149.05,9.57]
[1642145121340,9.57,149.16,149.04,3.84362612]
[1642145121635,10.0637,149.1,149.03,3.84362612]
[1642145122036,10.3137,149.1,149.03,3.84362612]
[1642145122437,10.3137,149.1,149.01,48.1224]
[1642145122639,10.3137,149.1,148.99,33.21025886]
[1642145123642,10.3137,149.1,149.0,3.84453965]
[1642145125148,1.67685959,149.09,149.0,3.84453965]
[1642145125348,10.0657,149.06,149.0,3.84453965]
[1642145125567,10.3157,149.06,149.0,3.84453965]
[1642145126574,10.3157,149.06,148.98,23.2302]
[1642145129675,0.25,149.06,148.98,23.2302]
[1642145129975,23.546,149.08,148.98,23.4902]
[1642145130975,23.546,149.08,148.99,3.84506038]
[1642145131279,23.546,149.08,148.99,13.90816038]
[1642145131477,23.296,149.08,148.99,14.16816038]
[1642145132977,23.546,149.08,148.99,10.3231]
[1642145133780,23.546,149.08,149.0,3.84497811]
[1642145135983,23.546,149.08,148.98,23.2302]
[1642145136185,33.6104,149.08,148.98,23.2302]
[1642145140520,2.684,149.07,148.98,23.2302]
[1642145140721,12.7496,149.07,148.98,23.2302]
[1642145140924,12.9996,149.07,148.98,23.2302]
[1642145141724,10.3156,149.07,148.98,23.2302]
[1642145142923,10.3156,149.07,148.98,23.4902]
[1642145143325,0.25,149.07,148.98,33.5545]
[1642145143524,23.546,149.08,148.98,33.5545]
[1642145144924,23.546,149.08,148.99,3.84521007]
[1642145145327,23.546,149.08,148.99,4.10521007]
[1642145146729,33.6104,149.08,148.98,37.13812612]
[1642145146927,35.28725959,149.08,148.98,37.13812612]
[1642145147328,33.6104,149.08,148.98,27.07382612]
[1642145147728,33.6104,149.08,148.98,23.2302]
[1642145148327,9.57,149.07,148.96,3.84362612]
[1642145148528,32.0,149.06,148.94,5.77156536]
[1642145148732,66.72,148.99,148.88,9.29995579]
[1642145148932,2.685,148.98,148.88,9.29995579]
[1642145149131,12.255,148.98,148.88,9.29995579]
[1642145149335,27.12824088,148.98,148.88,9.29995579]
[1642145149532,154.93795959,148.97,148.88,9.29995579]
[1642145149734,12.255,148.96,148.86,28.74350526]
[1642145150031,22.5776,148.96,148.86,28.74350526]
[1642145150834,19.8926,148.96,148.86,28.74350526]
[1642145152537,19.3926,148.96,148.86,28.74350526]
[1642145152738,19.3926,148.96,148.86,29.00350526]
[1642145153338,9.32,148.96,148.86,29.00350526]
[1642145153539,9.07,148.96,148.86,29.00350526]
[1642145153740,9.07,148.96,148.86,101.72350526]
[1642145153939,9.07,148.96,148.86,101.79350526]
[1642145154542,9.57,148.99,148.86,111.86490526]
[1642145155060,9.82,148.99,148.86,111.86490526]
[1642145155241,9.82,148.99,148.88,66.72]
[1642145155540,9.57,148.99,148.88,66.98]
[1642145155943,9.57,148.99,148.89,3.84778499]
[1642145156143,9.57,148.99,148.9,10.0685]
[1642145156543,9.57,148.99,148.9,10.3285]
[1642145156951,9.82,148.99,148.9,10.3285]
[1642145157246,9.82,148.99,148.9,77.0485]
[1642145157247,0.25,148.99,148.9,77.0485]
[1642145157447,23.7153,149.01,148.9,77.0485]
[1642145157649,36.205,149.03,148.9,77.0485]
[1642145157850,33.519,149.03,148.9,101.7106]
[1642145158451,33.519,149.03,148.91,3.84700647]
[1642145158750,33.519,149.03,148.92,41.13851585]
[1642145158949,33.519,149.03,148.92,31.33091585]
[1642145159250,33.519,149.03,148.92,31.07091585]
[1642145159850,33.769,149.03,148.92,31.07091585]
[1642145160050,2.685,149.02,148.92,31.07091585]
[1642145160251,10.0692,149.01,148.92,31.07091585]
[1642145160451,10.3192,149.01,148.92,31.33091585]
[1642145162055,0.25,149.01,148.92,31.33091585]
[1642145162253,2.685,149.02,148.92,31.33091585]
[1642145162254,2.935,149.02,148.92,31.33091585]
[1642145162856,2.935,149.02,148.92,41.39861585]
[1642145163079,2.935,149.02,148.93,66.72]
[1642145163277,2.685,149.05,148.93,66.72]
[1642145163479,2.685,149.05,148.93,91.4815]
[1642145163877,2.685,149.05,148.94,0.07]
[1642145164077,337.14931474,149.06,148.96,66.72]
[1642145164277,337.14931474,149.06,148.96,76.29]
[1642145164477,337.14931474,149.06,148.96,82.55]
[1642145164681,2.684,149.1,148.96,82.55]
[1642145164878,2.684,149.1,148.96,90.88]
[1642145165078,2.684,149.1,149.0,10.0619]
[1642145165277,2.684,149.1,149.02,23.8427374]
[1642145165478,2.684,149.1,149.02,24.1027374]
[1642145166582,2.934,149.1,149.02,24.1027374]
[1642145167285,2.934,149.1,149.02,34.1635374]
[1642145168885,2.934,149.1,149.02,33.9035374]
[1642145169487,2.934,149.1,149.02,23.8427374]
[1642145170286,2.934,149.1,149.02,24.1027374]
[1642145170687,0.25,149.1,149.02,24.1027374]
[1642145170887,12.503,149.11,149.02,24.1027374]
[1642145173389,9.82,149.11,149.02,34.1637374]
[1642145173589,0.25,149.11,149.02,34.1637374]
[1642145173990,12.9938,149.14,149.02,100.8837374]
[1642145174390,12.7438,149.14,149.02,100.8837374]
[1642145174790,12.7438,149.14,149.02,10.061]
[1642145174993,10.0628,149.11,148.96,34.4578]
[1642145175189,12.253,149.1,148.96,34.4578]
[1642145175390,9.57,149.09,148.96,34.4578]
[1642145175589,27.3921,149.08,148.96,34.4578]
[1642145175790,9.57,149.07,148.97,24.69604004]
[1642145175991,2.684,149.06,148.97,24.69604004]
[1642145176192,2.684,149.06,148.98,10.0633]
[1642145176392,2.934,149.06,148.98,10.0633]
[1642145176793,2.934,149.06,148.97,24.69604004]
[1642145177393,2.934,149.06,148.97,34.76044004]
[1642145177597,2.934,149.06,148.96,24.1503]
[1642145177793,9.57,149.05,148.96,24.1503]
[1642145177995,2.684,149.04,148.96,24.1503]
[1642145178496,2.934,149.04,148.96,24.1503]
[1642145179194,13.0016,149.04,148.96,24.1503]
[1642145179393,2.934,149.04,148.96,24.1503]
[1642145179799,2.934,149.04,148.96,24.4103]
[1642145180395,9.57,149.05,148.96,24.4103]
[1642145180797,2.684,149.07,148.96,24.4103]
[1642145181000,9.57,149.06,148.94,24.8442]
[1642145181199,9.57,149.06,148.93,23.5548]
[1642145181200,32.7779,149.06,148.93,23.5548]
[1642145181397,71.08085959,149.05,148.87,9.57]
[1642145181597,9.57,149.04,148.87,33.5782]
[1642145181796,26.5549,149.03,148.87,33.5782]
[1642145181996,76.29,149.02,148.88,28.77218662]
[1642145182198,2.685,149.01,148.88,28.77218662]
[1642145182396,2.685,149.01,148.88,38.84228662]
[1642145182397,10.0708,148.99,148.88,38.84228662]
[1642145182597,33.6008,148.99,148.88,39.10228662]
[1642145182802,33.8508,148.99,148.88,39.10228662]
[1642145183097,43.4208,148.99,148.88,39.10228662]
[1642145188299,43.4208,148.99,148.88,10.3301]
[1642145188901,43.4208,148.99,148.88,0.26]
[1642145189101,43.4208,148.99,148.87,24.0082]
[1642145189344,2.685,148.98,148.87,24.0082]
[1642145189544,10.0731,148.95,148.87,24.0082]
[1642145189843,10.0731,148.95,148.86,23.1957398]
[1642145190044,10.3231,148.95,148.86,23.1957398]
[1642145190844,10.3231,148.95,148.86,23.4557398]
[1642145193151,10.3231,148.95,148.84,48.8867]
[1642145193347,10.0745,148.93,148.84,49.1467]
[1642145193548,10.3245,148.93,148.84,0.26]
[1642145193947,10.3245,148.93,148.83,20.72661765]
[1642145194148,10.3245,148.93,148.84,29.28481016]
[1642145194547,0.25,148.93,148.84,29.54481016]
[1642145194948,2.936,148.94,148.84,29.54481016]
[1642145195752,13.0099,148.94,148.84,29.54481016]
[1642145196448,2.686,148.94,148.84,39.61801016]
[1642145196949,2.686,148.94,148.84,45.61801016]
[1642145197449,22.7397,148.95,148.87,1.91798522]
[1642145197853,22.9897,148.95,148.87,2.17798522]
[1642145199952,0.25,148.95,148.87,2.17798522]
[1642145200353,0.25,148.97,148.87,2.17798522]
[1642145200552,37.8709,148.98,148.87,2.17798522]
[1642145200756,24.7949,148.97,148.87,2.17798522]
[1642145200954,25.0449,148.97,148.88,1.91798522]
[1642145201355,25.0449,148.97,148.88,2.17798522]
[1642145203057,35.1168,148.97,148.88,2.17798522]
[1642145205359,2.685,148.96,148.88,2.17798522]
[1642145205559,2.935,148.96,148.88,0.26]
[1642145205960,2.935,148.96,148.87,2.17798522]
[1642145206559,2.935,148.96,148.87,12.24928522]
[1642145207860,0.25,148.96,148.87,12.24928522]
[1642145208086,37.8028,148.97,148.87,12.24928522]
[1642145208587,37.8028,148.97,148.88,1.91798522]
[1642145210392,37.8028,148.97,148.87,1.91798522]
[1642145210587,37.8028,148.97,148.87,2.17798522]
[1642145210991,37.8028,148.97,148.88,1.91798522]
[1642145211390,37.8028,148.97,148.88,2.17798522]
[1642145211789,27.7309,148.97,148.88,2.17798522]
[1642145211991,27.7309,148.97,148.89,1.91798522]
[1642145212389,27.7309,148.97,148.89,2.17798522]
[1642145212589,27.7309,148.97,148.9,23.66926708]
[1642145212791,25.0449,148.97,148.9,23.66926708]
[1642145213088,25.0449,148.97,148.9,23.92926708]
[1642145213695,25.0449,148.97,148.9,25.8472523]
[1642145217596,25.0449,148.97,148.9,2.17798522]
[1642145218996,0.25,148.97,148.9,2.17798522]
[1642145219201,25.1133,148.98,148.9,2.17798522]
[1642145219398,25.1133,148.98,148.91,1.91798522]
[1642145219798,25.1133,148.98,148.91,2.17798522]
[1642145221502,27.7983,148.98,148.91,2.17798522]
[1642145224002,25.1133,148.98,148.91,2.17798522]
[1642145225705,25.1133,148.98,148.91,1.91798522]
[1642145233512,35.1844,148.98,148.91,1.91798522]
[1642145233716,2.685,148.97,148.91,1.91798522]
[1642145234011,2.935,148.97,148.91,1.91798522]
[1642145234813,2.935,148.97,148.9,1.91798522]
[1642145235012,26.9334,148.97,148.9,1.91798522]
[1642145235212,10.0728,148.96,148.9,1.91798522]
[1642145235615,10.0728,148.96,148.85,3.8480189]
[1642145235616,0.25,148.96,148.89,1.91798522]
[1642145236017,26.6834,148.97,148.89,1.91798522]
[1642145237518,26.9334,148.97,148.89,1.91798522]
[1642145237719,26.9334,148.97,148.9,1.91798522]
[1642145240223,26.9334,148.97,148.88,25.83898522]
[1642145240622,26.6834,148.97,148.89,66.72]
[1642145240822,1.75804613,149.01,148.89,66.72]
[1642145241024,1.75804613,149.01,148.9,24.4726]
[1642145241427,1.75804613,149.01,148.9,24.7326]
[1642145241622,1.75804613,149.01,148.91,10.068]
[1642145242123,0.25,149.01,148.91,12.24598522]
[1642145242523,2.935,149.02,148.91,18.24598522]
[1642145242924,2.935,149.02,148.92,1.91798522]
[1642145243126,2.935,149.02,148.93,40.30794541]
[1642145243524,2.935,149.02,148.93,40.56794541]
[1642145244824,2.935,149.02,148.93,40.30794541]
[1642145245625,0.25,149.02,148.93,40.30794541]
[1642145246024,37.0716,149.03,148.93,40.30794541]
[1642145247432,37.0716,149.03,148.93,40.56794541]
[1642145248430,37.0716,149.03,148.93,0.26]
[1642145248830,34.3866,149.03,148.92,8.17798522]
[1642145249032,34.3866,149.03,148.92,31.11168522]
[1642145249834,34.3866,149.03,148.92,41.17998522]
[1642145250035,34.3866,149.03,148.92,40.91998522]
[1642145251538,24.3188,149.03,148.92,41.17998522]
[1642145258039,24.3188,149.03,148.92,39.262]
[1642145258840,24.3188,149.03,148.92,39.002]
[1642145259041,24.3188,149.03,148.91,1.91798522]
[1642145259042,42.0987,149.03,148.91,1.91798522]
[1642145259242,2.685,149.02,148.91,1.91798522]
[1642145259442,22.7726,149.01,148.91,1.91798522]
[1642145259642,2.685,149.0,148.91,1.91798522]
[1642145259942,2.935,149.0,148.91,1.91798522]
[1642145260440,2.935,149.0,148.9,23.7654]
[1642145261042,23.9998,148.99,148.9,23.7654]
[1642145261445,24.2498,148.99,148.9,24.0254]
[1642145261846,24.2498,148.99,148.9,23.7654]
[1642145261847,34.3204,148.99,148.9,23.7654]
[1642145262442,34.3204,148.99,148.9,24.0254]
[1642145265646,34.3204,148.99,148.88,1.91798522]
[1642145265844,37.0054,148.99,148.88,1.91798522]
[1642145267746,103.7254,148.99,148.88,1.91798522]
[1642145268347,103.7254,148.99,148.85,11.48798522]
[1642145268946,9.57,148.98,148.85,11.48798522]
[1642145269145,10.0737,148.95,148.85,11.48798522]
[1642145269547,10.3237,148.95,148.85,11.48798522]
[1642145270446,10.3237,148.95,148.87,1.91798522]
[1642145272656,10.3237,148.95,148.88,1.91798522]
[1642145274056,0.25,148.95,148.88,1.91798522]
[1642145274255,0.25,148.95,148.88,2.17798522]
[1642145274456,38.88014613,148.97,148.88,2.17798522]
[1642145274955,38.88014613,148.97,148.88,8.17798522]
[1642145277264,38.88014613,148.97,148.88,6.26]
[1642145277460,38.88014613,148.97,148.88,0.26]
[1642145277662,38.88014613,148.97,148.87,2.17798522]
[1642145277861,38.88014613,148.97,148.87,12.24988522]
[1642145278261,38.88014613,148.97,148.88,1.91798522]
[1642145278463,38.88014613,148.97,148.88,2.17798522]
[1642145278862,38.88014613,148.97,148.88,1.91798522]
[1642145279062,38.88014613,148.97,148.87,1.91798522]
[1642145279888,1.75804613,148.96,148.87,1.91798522]
[1642145280086,10.0751,148.92,148.87,1.91798522]
[1642145280487,10.3251,148.92,148.87,1.91798522]
[1642145280986,10.3251,148.92,148.86,1.91798522]
[1642145281989,77.0451,148.92,148.86,1.91798522]
[1642145282187,10.3251,148.92,148.86,1.91798522]
[1642145282388,10.3251,148.92,148.85,1.91798522]
[1642145285388,0.25,148.92,148.85,1.91798522]
[1642145285588,25.6105,148.93,148.85,1.91798522]
[1642145285789,22.9245,148.93,148.85,1.91798522]
[1642145285989,22.9245,148.93,148.85,2.17798522]
[1642145286793,1.75804613,148.95,148.85,2.17798522]
[1642145286992,24.75714613,148.95,148.85,2.17798522]
[1642145287598,25.00714613,148.95,148.85,2.17798522]
[1642145287796,23.2491,148.95,148.87,10.0721]
[1642145287995,23.2491,148.95,148.87,10.3321]
[1642145288198,23.2491,148.95,148.87,10.0721]
[1642145288396,33.3223,148.95,148.86,1.91798522]
[1642145288596,33.3223,148.95,148.88,1.91798522]
[1642145288796,2.686,148.94,148.88,1.91798522]
[1642145288998,0.25,148.94,148.88,1.91798522]
[1642145289397,0.25,148.94,148.87,1.91798522]
[1642145290199,36.0083,148.95,148.87,1.91798522]
[1642145293298,25.9351,148.95,148.87,1.91798522]
[1642145295203,36.0085,148.95,148.87,1.91798522]
[1642145297001,36.0085,148.95,148.86,26.53878522]
[1642145298137,36.0085,148.95,148.86,36.61158522]
[1642145299137,37.76654613,148.95,148.86,36.61158522]
[1642145299337,27.44314613,148.95,148.86,36.61158522]
[1642145299537,27.44314613,148.95,148.86,36.87158522]
[1642145299738,22.9991,148.95,148.86,36.87158522]
[1642145300638,23.2491,148.95,148.86,36.87158522]
[1642145300836,23.2491,148.95,148.88,1.91798522]
[1642145301039,23.2491,148.95,148.89,10.0709]
[1642145303042,23.2491,148.95,148.89,10.3309]
[1642145303940,0.25,148.95,148.89,10.3309]
[1642145304341,4.69404613,148.97,148.89,10.3309]
[1642145304543,2.00804613,148.97,148.89,10.3309]
[1642145304744,26.25654613,148.97,148.89,10.3309]
[1642145305545,24.4985,148.97,148.89,12.24888522]
[1642145306047,24.4985,148.97,148.89,11.98888522]
[1642145306246,24.4985,148.97,148.88,1.91798522]
[1642145306444,37.2554,148.97,148.88,1.91798522]
[1642145307044,39.01344613,148.97,148.88,25.98458522]
[1642145307947,28.94154613,148.97,148.88,36.31618522]
[1642145308150,28.94154613,148.97,148.88,36.05618522]
[1642145308347,28.94154613,148.97,148.88,36.31618522]
[1642145310757,27.1835,148.97,148.89,1.91798522]
[1642145310950,27.1835,148.97,148.89,2.17798522]
[1642145311150,27.1835,148.97,148.89,12.24818522]
[1642145311353,27.1835,148.97,148.9,52.58878041]
[1642145311550,27.1835,148.97,148.9,52.84878041]
[1642145312952,27.1835,148.97,148.9,62.91898041]
[1642145313152,2.935,148.97,148.9,62.91898041]
[1642145313752,0.25,148.97,148.9,64.83696563]
[1642145313954,2.00804613,148.99,148.9,64.83696563]
[1642145314955,1.75804613,148.99,148.9,64.83696563]
[1642145316360,2.00804613,148.99,148.9,64.83696563]
[1642145316962,0.25,148.99,148.9,64.83696563]
[1642145317461,26.40564613,149.0,148.9,64.83696563]
[1642145317661,26.40564613,149.0,148.91,23.2922]
[1642145317861,26.40564613,149.0,148.92,10.0687]
[1642145318066,36.47554613,149.0,148.91,23.2922]
[1642145318262,36.47554613,149.0,148.91,23.5522]
[1642145318962,36.47554613,149.0,148.91,25.21018522]
[1642145319167,2.685,148.99,148.91,25.21018522]
[1642145319463,2.935,148.99,148.91,25.21018522]
[1642145319663,4.69304613,148.99,148.91,25.21018522]
[1642145319864,4.69304613,148.99,148.91,23.2922]
[1642145321768,4.69304613,148.99,148.91,23.5522]
[1642145322565,4.44304613,148.99,148.91,33.6218]
[1642145322967,1.75804613,148.99,148.91,33.6218]
[1642145323367,36.22554613,149.0,148.91,35.53978522]
[1642145324072,36.47554613,149.0,148.91,35.53978522]
[1642145324969,36.47554613,149.0,148.91,25.21018522]
[1642145325169,2.685,148.99,148.91,1.91798522]
[1642145325369,10.0712,148.98,148.91,1.91798522]
[1642145325574,2.685,148.97,148.91,1.91798522]
[1642145325770,10.3212,148.98,148.91,1.91798522]
[1642145326372,10.3212,148.98,148.9,1.91798522]
[1642145327071,0.25,148.98,148.9,11.98818522]
[1642145327272,0.25,148.98,148.9,12.24818522]
[1642145327476,4.69304613,148.99,148.9,12.24818522]
[1642145327674,2.00804613,148.99,148.9,12.24818522]
[1642145328873,2.00804613,148.99,148.9,78.96818522]
[1642145329073,2.00804613,148.99,148.9,84.96818522]
[1642145329273,0.25,148.99,148.91,1.91798522]